Workbook

Sheet PRODUCT DATA
B2: [Company Name]
B3: New-Product Sales and Profit Forecasting Model — Product Data
B4: [Date]
C5: =CompanyName&" CONFIDENTIAL" -> [Company Name] CONFIDENTIAL
B6: Product Sales Data
B7: Product name | C7: Widget
B8: Year 1 estimated unit sales | C8: $100.00
B9: Year 1 unit price | C9: $400.00
B10: Unit price compound annual growth rate (CAGR) (years 2 through 5) | C10: 5.00%
B11: Year 1 market size (dollars) | C11: $50,000,000.00
B12: Market size CAGR (years 2 through 5) | C12: 10.00%
B13: Year 1 variable cost per unit | C13: $250.00
B14: Variable cost per unit CAGR (years 2 through 5) | C14: 5.00%
B15: Year 1 fixed costs | C15: $250,000.00
B16: Fixed cost CAGR (years 2 through 5) | C16: 3.00%
B17: Target operating income (year 5) | C17: $100,000.00
B18: Target market share (year 5) | C18: 2.00%
B20: Ramp Factors - Years 2 through 4 (% of year 5 sales)
B21: Year 1 | C21: N/A
B22: Year 2 | C22: 10.00%
B23: Year 3 | C23: 50.00%
B24: Year 4 | C24: 75.00%
B25: Year 5 | C25: 100.00%

Sheet SCENARIO OUTPUT
B2: ='PRODUCT DATA'!B2 -> [Company Name]
B3: New-Product Sales and Profit Forecasting Model -- Scenario Output
B4: =DateSet -> [Date]
B6: Gray cells will be calculated for you. You do not need to enter anything in them. | G6: =CompanyName&" CONFIDENTIAL" -> [Company Name] CONFIDENTIAL
B7: Product Sales Data | C7: Year 1 | D7: Year 2 | E7: Year 3 | F7: Year 4 | G7: Year 5
B8: Unit prices | C8: =UnitPrice -> $400.00 | D8: =C8*(1+GrowthRate) -> $420.00 | E8: =D8*(1+GrowthRate) -> $441.00 | F8: =E8*(1+GrowthRate) -> $463.05 | G8: =F8*(1+GrowthRate) -> $486.20
B9: Unit costs | C9: =CostPerUnit -> $250.00 | D9: =C9*(1+CostPerUnitCAGR) -> $262.50 | E9: =D9*(1+CostPerUnitCAGR) -> $275.63 | F9: =E9*(1+CostPerUnitCAGR) -> $289.41 | G9: =F9*(1+CostPerUnitCAGR) -> $303.88
B10: Fixed costs | C10: =FixedCosts -> $250,000.00 | D10: =C10*(1+FixedCostCAGR) -> $257,500.00 | E10: =D10*(1+FixedCostCAGR) -> $265,225.00 | F10: =E10*(1+FixedCostCAGR) -> $273,181.75 | G10: =F10*(1+FixedCostCAGR) -> $281,377.20
B11: Market size | C11: =MarketSize -> $50,000,000.00 | D11: =C11*(1+MarketSizeCAGR) -> $55,000,000.00 | E11: =D11*(1+MarketSizeCAGR) -> $60,500,000.00 | F11: =E11*(1+MarketSizeCAGR) -> $66,550,000.00 | G11: =F11*(1+MarketSizeCAGR) -> $73,205,000.00
B13: Scenario 1: Based on target operating income
B14: Unit sales | C14: =UnitSales -> $100.00 | D14: =RampYear2*$G$14 -> $209.17 | E14: =RampYear3*$G$14 -> $1,045.87 | F14: =RampYear4*$G$14 -> $1,568.80 | G14: =(G10+OperatingIncome)/(G8-G9) -> $2,091.73
B15: Dollar sales | C15: =C14*C8 -> $40,000.00 | D15: =D14*D8 -> $87,852.79 | E15: =E14*E8 -> $461,227.15 | F15: =F14*F8 -> $726,432.77 | G15: =G14*G8 -> $1,017,005.87
B16: Operating income | C16: =C15-(C14*C9)-C10 -> ($235,000.00) | D16: =D15-(D14*D9)-D10 -> ($224,555.20) | E16: =E15-(E14*E9)-E10 -> ($92,264.82) | F16: =F15-(F14*F9)-F10 -> ($769.46) | G16: =G15-(G14*G9)-G10 -> $100,000.00
B17: Market share | C17: =C15/C11 -> 0.08% | D17: =D15/D11 -> 0.16% | E17: =E15/E11 -> 0.76% | F17: =F15/F11 -> 1.09% | G17: =G15/G11 -> 1.39%
B19: Scenario 2: Based on target market share
B20: Unit sales | C20: =UnitSales -> $100.00 | D20: =RampYear2*$G$20 -> $301.13 | E20: =RampYear3*$G$20 -> $1,505.65 | F20: =RampYear4*$G$20 -> $2,258.47 | G20: =G21/G8 -> $3,011.30
B21: Dollar sales | C21: =C8*C14 -> $40,000.00 | D21: =D20*D8 -> $126,474.46 | E21: =E20*E8 -> $663,990.93 | F21: =F20*F8 -> $1,045,785.71 | G21: =MarketShare*G11 -> $1,464,100.00
B22: Operating income | C22: =C21-(C20*C9)-C10 -> ($235,000.00) | D22: =D21-(D20*D9)-D10 -> ($210,072.08) | E22: =E21-(E20*E9)-E10 -> ($16,228.40) | F22: =F21-(F20*F9)-F10 -> $118,987.89 | G22: =G21-(G20*G9)-G10 -> $267,660.30
B23: Market share | C23: =C21/C11 -> 0.08% | D23: =D21/D11 -> 0.23% | E23: =E21/E11 -> 1.10% | F23: =F21/F11 -> 1.57% | G23: =G21/G11 -> 2.00%

Sheet CHART DATA
B2: =CompanyName -> [Company Name]
B3: New-Product Sales and Profit Forecasting Model — Chart Data
B4: =DateSet -> [Date]
C5: =CompanyName&" CONFIDENTIAL" -> [Company Name] CONFIDENTIAL
